[Event "Masters Tournament (MTO)"]
[Site "Biel, Switzerland"]
[Date "2026.07.20"]
[Round "7.1"]
[White "Gloeckler, Christian"]
[Black "Savitha, Shri B"]
[Result "1-0"]
[TimeControl "100+30+30sec/move"]
[WhiteTitle "-"]
[BlackTitle "-"]
[WhiteFideId "34608966"]
[BlackFideId "35061887"]
[WhiteElo "2506"]
[BlackElo "2368"]

1. e4 {[%clk 01:40:57]} {[%emt 00:00:04]} c5 {[%clk 01:34:19]} {[%emt
00:06:40]} 2. Nf3 {[%clk 01:41:20]} {[%emt 00:00:07]} e6 {[%clk 01:34:45]}
{[%emt 00:00:04]} 3. d4 {[%clk 01:41:41]} {[%emt 00:00:09]} cxd4 {[%clk
01:35:10]} {[%emt 00:00:05]} 4. Nxd4 {[%clk 01:42:03]} {[%emt 00:00:07]} Nf6
{[%clk 01:35:38]} {[%emt 00:00:03]} 5. Nc3 {[%clk 01:42:22]} {[%emt 00:00:10]}
Nc6 {[%clk 01:36:04]} {[%emt 00:00:04]} 6. Be2 {[%clk 01:42:43]} {[%emt
00:00:10]} Bb4 {[%clk 01:36:27]} {[%emt 00:00:07]} 7. O-O {[%clk 01:43:05]}
{[%emt 00:00:07]} Bxc3 {[%clk 01:36:56]} {[%emt 00:00:02]} 8. bxc3 {[%clk
01:43:26]} {[%emt 00:00:09]} Nxe4 {[%clk 01:37:23]} {[%emt 00:00:03]} 9. Nxc6
{[%clk 01:43:44]} {[%emt 00:00:11]} dxc6 {[%clk 01:37:49]} {[%emt 00:00:04]} 10.
Bd3 {[%clk 01:44:05]} {[%emt 00:00:09]} Nf6 {[%clk 01:34:11]} {[%emt 00:04:08]}
11. Ba3 {[%clk 01:35:02]} {[%emt 00:09:33]} Qa5 {[%clk 01:33:36]} {[%emt
00:01:04]} 12. Qc1 {[%clk 01:34:25]} {[%emt 00:01:06]} h6 {[%clk 01:17:12]}
{[%emt 00:16:55]} 13. Rb1 {[%clk 01:25:35]} {[%emt 00:09:21]} Qc7 {[%clk
01:12:54]} {[%emt 00:04:48]} 14. Qe3 {[%clk 01:09:52]} {[%emt 00:16:13]} b6
{[%clk 01:07:43]} {[%emt 00:05:41]} 15. c4 {[%clk 01:04:47]} {[%emt 00:05:35]}
c5 {[%clk 00:58:06]} {[%emt 00:10:07]} 16. Bb2 {[%clk 01:04:20]} {[%emt
00:00:57]} Bb7 {[%clk 00:57:39]} {[%emt 00:00:57]} 17. Be5 {[%clk 01:02:03]}
{[%emt 00:02:46]} Qc6 {[%clk 00:56:34]} {[%emt 00:01:36]} 18. Qg3 {[%clk
01:02:05]} {[%emt 00:00:28]} Ne4 {[%clk 00:44:40]} {[%emt 00:12:24]} 19. Qxg7
{[%clk 00:45:44]} {[%emt 00:16:52]} O-O-O {[%clk 00:40:20]} {[%emt 00:04:49]}
20. f3 {[%clk 00:34:41]} {[%emt 00:11:34]} Nd2 {[%clk 00:36:56]} {[%emt
00:03:54]} 21. Qxf7 {[%clk 00:34:57]} {[%emt 00:00:13]} Rhg8 {[%clk 00:31:02]}
{[%emt 00:06:25]} 22. Rbd1 {[%clk 00:27:56]} {[%emt 00:07:30]} Rdf8 {[%clk
00:18:32]} {[%emt 00:13:00]} 23. Qxf8+ {[%clk 00:27:07]} {[%emt 00:01:20]} Rxf8
{[%clk 00:19:01]} {[%emt 00:00:01]} 24. Rxd2 {[%clk 00:27:24]} {[%emt
00:00:12]} Qa4 {[%clk 00:19:22]} {[%emt 00:00:10]} 25. Re2 {[%clk 00:24:07]}
{[%emt 00:03:46]} b5 {[%clk 00:16:39]} {[%emt 00:03:13]} 26. Bd6 {[%clk
00:21:29]} {[%emt 00:03:09]} Re8 {[%clk 00:13:53]} {[%emt 00:03:16]} 27. Bg3
{[%clk 00:12:22]} {[%emt 00:09:37]} bxc4 {[%clk 00:12:09]} {[%emt 00:02:15]} 28.
Bg6 {[%clk 00:12:38]} {[%emt 00:00:13]} Re7 {[%clk 00:10:02]} {[%emt 00:02:36]}
29. Bd6 {[%clk 00:08:10]} {[%emt 00:04:59]} Rg7 {[%clk 00:08:37]} {[%emt
00:01:55]} 30. Rxe6 {[%clk 00:07:49]} {[%emt 00:00:51]} Bd5 {[%clk 00:06:56]}
{[%emt 00:02:11]} 31. Rf6 {[%clk 00:06:54]} {[%emt 00:01:24]} Rxg6 {[%clk
00:06:09]} {[%emt 00:01:18]} 32. Rxg6 {[%clk 00:07:14]} {[%emt 00:00:09]} Qxc2
{[%clk 00:06:04]} {[%emt 00:00:35]} 33. Rg7 {[%clk 00:05:09]} {[%emt 00:02:35]}
Qd3 {[%clk 00:04:08]} {[%emt 00:02:26]} 34. Bxc5 {[%clk 00:03:50]} {[%emt
00:01:48]} c3 {[%clk 00:04:28]} {[%emt 00:00:10]} 35. Re1 {[%clk 00:03:40]}
{[%emt 00:00:40]} Qb5 {[%clk 00:04:15]} {[%emt 00:00:44]} 36. Be3 {[%clk
00:01:51]} {[%emt 00:02:19]} c2 {[%clk 00:02:47]} {[%emt 00:01:57]} 37. Rxa7
{[%clk 00:01:57]} {[%emt 00:00:25]} Qd3 {[%clk 00:01:54]} {[%emt 00:01:23]} 38.
Kf2 {[%clk 00:01:48]} {[%emt 00:00:38]} Qc4 {[%clk 00:01:13]} {[%emt 00:01:11]}
39. Rc1 {[%clk 00:01:10]} {[%emt 00:01:08]} Kb8 {[%clk 00:01:09]} {[%emt
00:00:34]} 40. Ra5 {[%clk 00:00:34]} {[%emt 00:01:06]} Qd3 {[%clk 00:00:39]}
{[%emt 00:00:59]} 41. Rxd5 {[%clk 00:26:27]} {[%emt 00:04:38]} Qxd5 {[%clk
00:31:03]} {[%emt 00:00:06]} 42. Rxc2 {[%clk 00:26:51]} {[%emt 00:00:06]} h5
{[%clk 00:31:30]} {[%emt 00:00:03]} 43. Rd2 {[%clk 00:26:18]} {[%emt 00:01:04]}
Qc4 {[%clk 00:31:54]} {[%emt 00:00:06]} 44. h3 {[%clk 00:23:54]} {[%emt
00:02:53]} Qh4+ {[%clk 00:32:12]} {[%emt 00:00:12]} 45. Kf1 {[%clk 00:24:12]}
{[%emt 00:00:12]} Qc4+ {[%clk 00:32:25]} {[%emt 00:00:17]} 46. Kg1 {[%clk
00:21:45]} {[%emt 00:02:57]} Kb7 {[%clk 00:32:49]} {[%emt 00:00:06]} 47. g4
{[%clk 00:19:13]} {[%emt 00:03:01]} Qc3 {[%clk 00:30:59]} {[%emt 00:02:21]} 48.
Kf2 {[%clk 00:19:32]} {[%emt 00:00:11]} h4 {[%clk 00:30:25]} {[%emt 00:01:05]}
49. Ke2 {[%clk 00:13:53]} {[%emt 00:06:09]} Qc4+ {[%clk 00:30:11]} {[%emt
00:00:44]} 50. Rd3 {[%clk 00:13:26]} {[%emt 00:00:57]} Qxa2+ {[%clk 00:29:25]}
{[%emt 00:01:16]} 51. Bd2 {[%clk 00:13:31]} {[%emt 00:00:25]} Qe6+ {[%clk
00:29:15]} {[%emt 00:00:40]} 52. Re3 {[%clk 00:12:39]} {[%emt 00:01:22]} Qa6+
{[%clk 00:29:21]} {[%emt 00:00:24]} 53. Ke1 {[%clk 00:13:03]} {[%emt 00:00:06]}
Qd6 {[%clk 00:29:40]} {[%emt 00:00:10]} 54. f4 {[%clk 00:13:25]} {[%emt
00:00:08]} Qd5 {[%clk 00:29:53]} {[%emt 00:00:18]} 55. f5 {[%clk 00:10:59]}
{[%emt 00:02:56]} Qh1+ {[%clk 00:29:48]} {[%emt 00:00:35]} 56. Ke2 {[%clk
00:11:20]} {[%emt 00:00:10]} Qg2+ {[%clk 00:30:15]} {[%emt 00:00:02]} 57. Kd1
{[%clk 00:11:31]} {[%emt 00:00:19]} Qf1+ {[%clk 00:30:41]} {[%emt 00:00:05]} 58.
Be1 {[%clk 00:09:33]} {[%emt 00:02:27]} Kb6 {[%clk 00:29:19]} {[%emt 00:01:53]}
59. Kd2 {[%clk 00:09:05]} {[%emt 00:00:57]} Qg2+ {[%clk 00:29:43]} {[%emt
00:00:06]} 60. Kd3 {[%clk 00:09:15]} {[%emt 00:00:20]} Qf1+ {[%clk 00:28:10]}
{[%emt 00:02:03]} 61. Kc3 {[%clk 00:07:42]} {[%emt 00:02:03]} Kc5 {[%clk
00:28:17]} {[%emt 00:00:23]} 62. Bxh4 {[%clk 00:04:16]} {[%emt 00:03:55]} Qc1+
{[%clk 00:21:53]} {[%emt 00:06:55]} 63. Kd3 {[%clk 00:04:40]} {[%emt 00:00:06]}
Kd5 {[%clk 00:20:53]} {[%emt 00:01:30]} 64. Be1 {[%clk 00:04:48]} {[%emt
00:00:21]} Qc4+ {[%clk 00:16:18]} {[%emt 00:05:04]} 65. Kd2 {[%clk 00:05:17]}
{[%emt 00:00:02]} Qf1 {[%clk 00:15:48]} {[%emt 00:01:00]} 66. Bh4 {[%clk
00:03:16]} {[%emt 00:02:30]} Qg2+ {[%clk 00:15:23]} {[%emt 00:00:56]} 67. Ke1
{[%clk 00:03:36]} {[%emt 00:00:10]} Qc2 {[%clk 00:13:11]} {[%emt 00:02:42]} 68.
Bf2 {[%clk 00:03:51]} {[%emt 00:00:15]} Qc4 {[%clk 00:13:38]} {[%emt 00:00:04]}
69. Bg3 {[%clk 00:03:06]} {[%emt 00:01:15]} Kd4 {[%clk 00:10:39]} {[%emt
00:03:29]} 70. Kf2 {[%clk 00:03:24]} {[%emt 00:00:12]} Qc2+ {[%clk 00:10:47]}
{[%emt 00:00:23]} 71. Re2 {[%clk 00:03:46]} {[%emt 00:00:08]} Qc6 {[%clk
00:09:30]} {[%emt 00:01:48]} 72. Kg1 {[%clk 00:03:53]} {[%emt 00:00:22]} Kd3
{[%clk 00:09:48]} {[%emt 00:00:12]} 73. Re1 {[%clk 00:04:15]} {[%emt 00:00:08]}
Qf3 {[%clk 00:10:09]} {[%emt 00:00:10]} 74. Bf2 {[%clk 00:04:40]} {[%emt
00:00:05]} Kd2 {[%clk 00:10:21]} {[%emt 00:00:17]} 75. Re3 {[%clk 00:05:03]}
{[%emt 00:00:07]} Qf4 {[%clk 00:10:38]} {[%emt 00:00:06]} 76. Kg2 {[%clk
00:05:02]} {[%emt 00:00:37]} Kd1 {[%clk 00:11:02]} {[%emt 00:00:07]} 77. Re1+
{[%clk 00:05:01]} {[%emt 00:00:30]} Kc2 {[%clk 00:11:22]} {[%emt 00:00:10]} 78.
Re2+ {[%clk 00:05:11]} {[%emt 00:00:21]} Kd1 {[%clk 00:10:44]} {[%emt
00:01:08]} 79. Bg3 {[%clk 00:05:23]} {[%emt 00:00:18]} Qd4 {[%clk 00:10:37]}
{[%emt 00:00:38]} 80. Rf2 {[%clk 00:05:45]} {[%emt 00:00:08]} Qf6 {[%clk
00:10:51]} {[%emt 00:00:16]} 81. h4 {[%clk 00:06:08]} {[%emt 00:00:06]} 1-0

[Event "Masters Tournament (MTO)"]
[Site "Biel, Switzerland"]
[Date "2026.07.20"]
[Round "7.2"]
[White "Liu, Bei"]
[Black "Acs, Peter"]
[Result "0-1"]
[TimeControl "100+30+30sec/move"]
[WhiteTitle "-"]
[BlackTitle "-"]
[WhiteFideId "8603596"]
[BlackFideId "708020"]
[WhiteElo "2175"]
[BlackElo "2561"]

1. e4 {[%clk 01:40:56]} {[%emt 00:00:05]} c5 {[%clk 01:40:46]} {[%emt
00:00:16]} 2. Nf3 {[%clk 01:41:19]} {[%emt 00:00:04]} d6 {[%clk 01:41:08]}
{[%emt 00:00:12]} 3. d4 {[%clk 01:41:43]} {[%emt 00:00:03]} cxd4 {[%clk
01:41:31]} {[%emt 00:00:08]} 4. Nxd4 {[%clk 01:42:09]} {[%emt 00:00:04]} Nf6
{[%clk 01:41:53]} {[%emt 00:00:08]} 5. Nc3 {[%clk 01:42:34]} {[%emt 00:00:05]}
Nc6 {[%clk 01:42:15]} {[%emt 00:00:08]} 6. Bg5 {[%clk 01:42:14]} {[%emt
00:00:49]} Bd7 {[%clk 01:42:10]} {[%emt 00:00:35]} 7. Qd2 {[%clk 01:42:33]}
{[%emt 00:00:10]} a6 {[%clk 01:42:20]} {[%emt 00:00:20]} 8. O-O-O {[%clk
01:42:22]} {[%emt 00:00:41]} e6 {[%clk 01:42:21]} {[%emt 00:00:30]} 9. f3
{[%clk 01:41:34]} {[%emt 00:01:18]} Nxd4 {[%clk 01:41:14]} {[%emt 00:01:38]} 10.
Qxd4 {[%clk 01:42:01]} {[%emt 00:00:03]} h6 {[%clk 01:41:21]} {[%emt 00:00:23]}
11. Bd2 {[%clk 01:41:53]} {[%emt 00:00:37]} Bc6 {[%clk 01:40:33]} {[%emt
00:01:19]} 12. Bd3 {[%clk 01:40:20]} {[%emt 00:02:03]} Qc7 {[%clk 01:37:41]}
{[%emt 00:03:22]} 13. Rhe1 {[%clk 01:34:42]} {[%emt 00:06:07]} Be7 {[%clk
01:36:40]} {[%emt 00:01:31]} 14. Kb1 {[%clk 01:30:14]} {[%emt 00:04:59]} b5
{[%clk 01:30:50]} {[%emt 00:06:19]} 15. Qg1 {[%clk 01:24:06]} {[%emt 00:06:38]}
Nd7 {[%clk 01:26:57]} {[%emt 00:04:22]} 16. Be3 {[%clk 01:19:03]} {[%emt
00:05:34]} Ne5 {[%clk 01:21:39]} {[%emt 00:05:48]} 17. Bd4 {[%clk 01:16:28]}
{[%emt 00:03:05]} O-O {[%clk 01:14:43]} {[%emt 00:07:26]} 18. f4 {[%clk
01:10:13]} {[%emt 00:06:44]} Nxd3 {[%clk 01:11:46]} {[%emt 00:03:28]} 19. Rxd3
{[%clk 01:04:55]} {[%emt 00:05:48]} b4 {[%clk 01:07:20]} {[%emt 00:04:55]} 20.
Nd1 {[%clk 01:04:13]} {[%emt 00:01:12]} e5 {[%clk 01:07:19]} {[%emt 00:00:32]}
21. Bf2 {[%clk 00:46:30]} {[%emt 00:18:13]} Qb7 {[%clk 00:55:07]} {[%emt
00:12:42]} 22. Rde3 {[%clk 00:40:23]} {[%emt 00:06:38]} exf4 {[%clk 00:53:23]}
{[%emt 00:02:13]} 23. R3e2 {[%clk 00:40:46]} {[%emt 00:00:06]} Rfe8 {[%clk
00:52:19]} {[%emt 00:01:35]} 24. Bd4 {[%clk 00:36:31]} {[%emt 00:04:45]} Bh4
{[%clk 00:50:49]} {[%emt 00:02:00]} 25. g3 {[%clk 00:31:43]} {[%emt 00:05:19]}
fxg3 {[%clk 00:50:58]} {[%emt 00:00:21]} 26. Ne3 {[%clk 00:30:29]} {[%emt
00:01:44]} Bxe4 {[%clk 00:39:00]} {[%emt 00:12:27]} 27. hxg3 {[%clk 00:29:05]}
{[%emt 00:01:54]} Bg5 {[%clk 00:38:21]} {[%emt 00:01:09]} 28. Nf5 {[%clk
00:28:32]} {[%emt 00:01:03]} Qd5 {[%clk 00:36:34]} {[%emt 00:02:16]} 29. Nxg7
{[%clk 00:23:01]} {[%emt 00:06:02]} Bxc2+ {[%clk 00:35:44]} {[%emt 00:01:20]}
30. Ka1 {[%clk 00:21:26]} {[%emt 00:02:06]} Rxe2 {[%clk 00:31:14]} {[%emt
00:04:59]} 31. Rxe2 {[%clk 00:21:54]} {[%emt 00:00:02]} Be4 {[%clk 00:27:34]}
{[%emt 00:04:10]} 32. Re1 {[%clk 00:20:30]} {[%emt 00:01:54]} Rc8 {[%clk
00:24:52]} {[%emt 00:03:11]} 33. Nh5 {[%clk 00:19:16]} {[%emt 00:01:44]} Bf5
{[%clk 00:16:12]} {[%emt 00:09:11]} 34. Nf6+ {[%clk 00:11:49]} {[%emt
00:07:58]} Bxf6 {[%clk 00:16:32]} {[%emt 00:00:10]} 35. Bxf6 {[%clk 00:12:17]}
{[%emt 00:00:01]} Be6 {[%clk 00:16:36]} {[%emt 00:00:26]} 36. b3 {[%clk
00:12:40]} {[%emt 00:00:07]} Rc2 {[%clk 00:16:22]} {[%emt 00:00:43]} 37. Qe3
{[%clk 00:11:57]} {[%emt 00:01:14]} Qg2 {[%clk 00:15:30]} {[%emt 00:01:21]} 38.
Qd3 {[%clk 00:09:34]} {[%emt 00:02:53]} Qf2 {[%clk 00:12:40]} {[%emt 00:03:21]}
39. Rf1 {[%clk 00:08:34]} {[%emt 00:01:30]} Rc1+ {[%clk 00:12:04]} {[%emt
00:01:06]} 0-1

[Event "Masters Tournament (MTO)"]
[Site "Biel, Switzerland"]
[Date "2026.07.20"]
[Round "7.3"]
[White "Gopal, G.N."]
[Black "Balabayeva, Xeniya"]
[Result "1-0"]
[TimeControl "100+30+30sec/move"]
[WhiteTitle "-"]
[BlackTitle "-"]
[WhiteFideId "5015693"]
[BlackFideId "13719688"]
[WhiteElo "2529"]
[BlackElo "2302"]

1. e4 {[%clk 01:40:56]} {[%emt 00:00:02]} e5 {[%clk 01:40:48]} {[%emt
00:00:13]} 2. Nf3 {[%clk 01:41:19]} {[%emt 00:00:07]} Nc6 {[%clk 01:41:08]}
{[%emt 00:00:10]} 3. Bb5 {[%clk 01:41:44]} {[%emt 00:00:05]} a6 {[%clk
01:41:30]} {[%emt 00:00:09]} 4. Ba4 {[%clk 01:42:10]} {[%emt 00:00:04]} Nf6
{[%clk 01:41:51]} {[%emt 00:00:08]} 5. O-O {[%clk 01:42:31]} {[%emt 00:00:09]}
Be7 {[%clk 01:41:30]} {[%emt 00:00:51]} 6. d3 {[%clk 01:42:11]} {[%emt
00:00:52]} d6 {[%clk 01:41:46]} {[%emt 00:00:14]} 7. c3 {[%clk 01:42:32]}
{[%emt 00:00:08]} O-O {[%clk 01:41:42]} {[%emt 00:00:34]} 8. Re1 {[%clk
01:42:15]} {[%emt 00:00:48]} h6 {[%clk 01:38:36]} {[%emt 00:03:36]} 9. Nbd2
{[%clk 01:42:07]} {[%emt 00:00:38]} Re8 {[%clk 01:38:18]} {[%emt 00:00:47]} 10.
h3 {[%clk 01:38:28]} {[%emt 00:04:09]} Bd7 {[%clk 01:38:19]} {[%emt 00:00:29]}
11. d4 {[%clk 01:22:16]} {[%emt 00:16:42]} b5 {[%clk 01:33:52]} {[%emt
00:04:57]} 12. Bc2 {[%clk 01:21:21]} {[%emt 00:01:25]} a5 {[%clk 01:18:14]}
{[%emt 00:16:08]} 13. Nf1 {[%clk 01:16:30]} {[%emt 00:05:21]} Bf8 {[%clk
01:13:51]} {[%emt 00:04:53]} 14. Ng3 {[%clk 01:16:45]} {[%emt 00:00:16]} a4
{[%clk 01:14:01]} {[%emt 00:00:20]} 15. Be3 {[%clk 01:01:28]} {[%emt 00:15:47]}
Na5 {[%clk 01:07:48]} {[%emt 00:06:44]} 16. b3 {[%clk 01:00:34]} {[%emt
00:01:24]} axb3 {[%clk 01:08:00]} {[%emt 00:00:18]} 17. axb3 {[%clk 01:01:00]}
{[%emt 00:00:05]} Nc6 {[%clk 01:08:25]} {[%emt 00:00:05]} 18. Qd2 {[%clk
00:54:15]} {[%emt 00:07:14]} Qc8 {[%clk 00:46:31]} {[%emt 00:22:24]} 19. d5
{[%clk 00:35:52]} {[%emt 00:18:54]} Ne7 {[%clk 00:43:35]} {[%emt 00:03:25]} 20.
c4 {[%clk 00:36:13]} {[%emt 00:00:09]} bxc4 {[%clk 00:34:20]} {[%emt 00:09:45]}
21. bxc4 {[%clk 00:36:35]} {[%emt 00:00:08]} c5 {[%clk 00:34:36]} {[%emt
00:00:14]} 22. Nh4 {[%clk 00:30:03]} {[%emt 00:07:01]} Qb7 {[%clk 00:24:44]}
{[%emt 00:10:22]} 23. f4 {[%clk 00:23:25]} {[%emt 00:07:09]} Rxa1 {[%clk
00:21:09]} {[%emt 00:04:05]} 24. Rxa1 {[%clk 00:23:54]} {[%emt 00:00:01]} exf4
{[%clk 00:19:49]} {[%emt 00:01:50]} 25. Bxf4 {[%clk 00:24:19]} {[%emt
00:00:05]} Ng6 {[%clk 00:14:42]} {[%emt 00:05:35]} 26. Nxg6 {[%clk 00:24:27]}
{[%emt 00:00:22]} fxg6 {[%clk 00:15:11]} {[%emt 00:00:01]} 27. Qc3 {[%clk
00:07:12]} {[%emt 00:17:45]} g5 {[%clk 00:07:01]} {[%emt 00:08:41]} 28. Bd2
{[%clk 00:07:41]} Ra8 {[%clk 00:05:10]} {[%emt 00:02:21]} 29. Rb1 {[%clk
00:04:26]} {[%emt 00:03:46]} Qc7 {[%clk 00:04:39]} {[%emt 00:01:00]} 30. e5
{[%clk 00:03:14]} {[%emt 00:01:42]} dxe5 {[%clk 00:05:02]} {[%emt 00:00:07]} 31.
Ne4 {[%clk 00:03:43]} Nxe4 {[%clk 00:00:52]} {[%emt 00:04:40]} 32. Bxe4 {[%clk
00:04:12]} {[%emt 00:00:01]} Bd6 {[%clk 00:01:13]} {[%emt 00:00:09]} 33. Qe3
{[%clk 00:02:07]} {[%emt 00:02:35]} Rf8 {[%clk 00:01:15]} {[%emt 00:00:28]} 34.
Ra1 {[%clk 00:01:50]} {[%emt 00:00:47]} Bf5 {[%clk 00:01:06]} {[%emt 00:00:39]}
35. Ra6 {[%clk 00:02:01]} {[%emt 00:00:18]} Bxe4 {[%clk 00:00:47]} {[%emt
00:00:50]} 36. Qxe4 {[%clk 00:02:31]} Qe7 {[%clk 00:00:53]} {[%emt 00:00:24]}
37. Be3 {[%clk 00:02:49]} {[%emt 00:00:11]} Rf6 {[%clk 00:00:38]} {[%emt
00:00:44]} 38. Rc6 {[%clk 00:01:18]} {[%emt 00:02:01]} Qb7 {[%clk 00:00:33]}
{[%emt 00:00:36]} 39. Kh2 {[%emt 00:01:22]} Qe7 {[%clk 00:00:38]} {[%emt
00:00:13]} 40. Kg1 {[%clk 00:00:50]} {[%emt 00:00:18]} Qb7 {[%clk 00:01:03]}
{[%emt 00:00:05]} 41. Bxc5 {[%clk 00:00:35]} {[%emt 00:00:45]} Bxc5+ {[%clk
00:24:31]} {[%emt 00:07:03]} 42. Rxc5 {[%clk 00:30:34]} {[%emt 00:00:31]} Qb6
{[%clk 00:24:52]} {[%emt 00:00:09]} 43. Qe3 {[%clk 00:30:32]} {[%emt 00:00:32]}
Rf8 {[%clk 00:20:50]} {[%emt 00:04:32]} 44. d6 {[%clk 00:29:40]} {[%emt
00:01:21]} Qxd6 {[%clk 00:15:52]} {[%emt 00:05:29]} 45. Rxe5 {[%clk 00:30:09]}
Qd1+ {[%clk 00:06:31]} {[%emt 00:09:51]} 46. Kh2 {[%clk 00:30:03]} {[%emt
00:00:37]} Qf1 {[%clk 00:06:54]} {[%emt 00:00:07]} 47. Re4 {[%clk 00:28:15]}
{[%emt 00:02:18]} Qf2 {[%clk 00:04:21]} {[%emt 00:03:02]} 48. Qd3 {[%clk
00:24:49]} {[%emt 00:03:55]} Qc5 {[%clk 00:03:38]} {[%emt 00:01:13]} 49. Qd7
{[%clk 00:14:59]} {[%emt 00:10:21]} Qf5 {[%clk 00:02:39]} {[%emt 00:01:29]} 50.
Qd4 {[%clk 00:14:35]} {[%emt 00:00:54]} Qf2 {[%clk 00:01:04]} {[%emt 00:02:05]}
51. Qd5+ {[%clk 00:14:03]} {[%emt 00:01:02]} Qf7 {[%clk 00:01:32]} {[%emt
00:00:02]} 52. Qd6 {[%clk 00:09:32]} {[%emt 00:05:00]} Qf6 {[%clk 00:01:35]}
{[%emt 00:00:27]} 53. Qd7 {[%clk 00:07:17]} {[%emt 00:02:45]} Qf5 {[%clk
00:01:18]} {[%emt 00:00:47]} 54. Qe7 {[%clk 00:03:37]} {[%emt 00:04:10]} Rf7
{[%clk 00:01:05]} {[%emt 00:00:43]} 55. Qd8+ {[%clk 00:02:49]} {[%emt
00:01:19]} Rf8 {[%clk 00:01:17]} {[%emt 00:00:17]} 56. Qd4 {[%clk 00:00:57]}
{[%emt 00:02:22]} Qf2 {[%clk 00:01:39]} {[%emt 00:00:08]} 57. Qc3 {[%clk
00:01:11]} {[%emt 00:00:14]} Qf6 {[%clk 00:01:31]} {[%emt 00:00:40]} 58. Qb4
{[%clk 00:01:36]} {[%emt 00:00:06]} g4 {[%clk 00:00:35]} {[%emt 00:01:25]} 59.
Rxg4 {[%clk 00:01:35]} {[%emt 00:00:31]} Qe5+ {[%clk 00:01:04]} {[%emt
00:00:01]} 60. Rg3 {[%clk 00:01:39]} {[%emt 00:00:27]} h5 {[%clk 00:00:48]}
{[%emt 00:00:46]} 61. Qb5 {[%clk 00:00:58]} {[%emt 00:01:11]} Qf4 {[%clk
00:00:35]} {[%emt 00:00:42]} 62. Qg5 {[%clk 00:00:59]} {[%emt 00:00:29]} Qc7
{[%clk 00:00:35]} {[%emt 00:00:30]} 63. Kg1 {[%clk 00:00:57]} {[%emt 00:00:32]}
Rf5 {[%clk 00:00:31]} {[%emt 00:00:33]} 64. Qxf5 {[%clk 00:01:21]} {[%emt
00:00:07]} Qxg3 {[%clk 00:00:57]} {[%emt 00:00:04]} 65. Qd5+ {[%clk 00:01:02]}
{[%emt 00:00:50]} Kf8 {[%clk 00:01:26]} 66. Qf3+ {[%clk 00:01:04]} {[%emt
00:00:28]} Qxf3 {[%clk 00:01:01]} {[%emt 00:00:55]} 67. gxf3 {[%clk 00:01:33]}
Ke7 {[%clk 00:01:23]} {[%emt 00:00:09]} 68. Kf2 {[%clk 00:02:02]} Kd6 {[%clk
00:01:41]} {[%emt 00:00:12]} 69. Ke3 {[%clk 00:02:17]} {[%emt 00:00:15]} Kc5
{[%clk 00:02:05]} {[%emt 00:00:07]} 70. Kd3 {[%clk 00:02:45]} {[%emt 00:00:03]}
h4 {[%clk 00:01:39]} {[%emt 00:00:55]} 71. f4 {[%clk 00:02:56]} {[%emt
00:00:19]} Kc6 {[%clk 00:01:33]} {[%emt 00:00:36]} 72. Kd4 {[%clk 00:03:22]}
{[%emt 00:00:04]} Kd6 {[%clk 00:02:00]} {[%emt 00:00:03]} 73. f5 {[%clk
00:03:37]} {[%emt 00:00:15]} Kc6 {[%clk 00:02:16]} {[%emt 00:00:13]} 74. c5
{[%clk 00:04:03]} {[%emt 00:00:04]} Kc7 {[%clk 00:02:36]} {[%emt 00:00:11]} 75.
Kd5 {[%clk 00:04:30]} {[%emt 00:00:03]} Kd7 {[%clk 00:03:02]} {[%emt 00:00:04]}
76. c6+ {[%clk 00:04:50]} {[%emt 00:00:10]} Kc7 {[%clk 00:03:26]} {[%emt
00:00:05]} 77. Kc5 {[%clk 00:05:17]} {[%emt 00:00:03]} Kc8 {[%clk 00:03:38]}
{[%emt 00:00:18]} 78. Kd6 {[%clk 00:05:43]} {[%emt 00:00:04]} Kd8 {[%clk
00:04:05]} {[%emt 00:00:04]} 79. Ke6 {[%clk 00:05:23]} {[%emt 00:00:50]} 1-0